[Event "World Junior U20 Open 2018"]
[Site "Gebze"]
[Date "2018.09.07"]
[Round "4.82"]
[White "Yilmaz, Goktan"]
[Black "Daghan, Devran"]
[Result "1-0"]
[ECO "B90"]
[WhiteElo "2237"]
[BlackElo "2004"]
[Annotator "NA"]
[PlyCount "93"]
[EventDate "2018.09.05"]
[EventType "swiss"]
[EventCountry "TUR"]
[SourceTitle "playchess.com"]
[Source "ChessBase"]
[SourceQuality "1"]
[TimeControl "40/5400+30:1800+30"]

1. e4 {[%emt 0:00:30]} c5 {[%emt 0:00:30]} 2. Nf3 {[%emt 0:00:30]} d6 {[%emt 0:00:30]} 3. d4 {[%emt 0:00:30]} cxd4 {[%emt 0:00:00]} 4. Nxd4 {[%emt 0:00:00]} Nf6 {[%emt 0:00:00]} 5. Nc3 {[%emt 0:00:00]} a6 {[%emt 0:00:30]} 6. Be3 {[%emt 0:00:30]} e5 {[%emt 0:00:30]} 7. Nf3 {[%emt 0:00:30]} Be7 {[%emt 0:00:00]} 8. Bc4 {[%emt 0:00:00]} O-O {[%emt 0:00:00]} 9. O-O {[%emt 0:01:00]} Nbd7 {[%emt 0:10:30] B90: Sizilianisch (Najdorf-Variante, Abweichungen)} (9... Be6 10. Bb3 Qc7 11. Nh4 g6 12. Nf3 Re8 13. Ng5 Bc4 14. Re1 Nbd7 15. a4 Qc6 16. Bxc4 Qxc4 17. a5 Qc6 18. Qd3 Rac8 {½-½ (48) Sjugirov,S (2652)-Wojtaszek,R (2738) Batumi 2018}) 10. a4 {[%emt 0:09:30]} Qc7 {[%emt 0:06:30]} 11. Qe2 {[%emt 0:02:30]} b6 {[%emt 0:07:30]} 12. Rad1 {[%emt 0:09:30]} Bb7 {[%emt 0:00:30]} 13. Bg5 {[%emt 0:01:30]} h6 {[%emt 0:19:30]} 14. Bxf6 {[%emt 0:01:30]} Nxf6 {[%emt 0:00:30]} 15. Rfe1 {[%emt 0:05:30]} Rfc8 $146 {[%emt 0:04:30]} ({Vorgänger:} 15... g6 16. Bb3 Rac8 17. Nd2 Kg7 18. Qf3 Qc5 19. Nc4 Qb4 20. Ne3 {1-0 (44) Frolyanov,D (2564)-Ivanov,R (2252) Kazan 2009}) 16. Bb3 {[%emt 0:00:30]} Qc5 {[%emt 0:01:30]} 17. Nh4 {[%emt 0:04:30]} Bc6 {[%emt 0:12:30]} 18. Nf5 {[%emt 0:04:30]} Re8 {[%emt 0:13:43]} 19. Qf3 {[%emt 0:05:30]} Bd7 {[%emt 0:02:12]} 20. Nd5 {[%emt 0:03:30]} Bxf5 {[%emt 0:02:53]} 21. Qxf5 {[%emt 0:00:30]} Ra7 {[%emt 0:00:51]} 22. Ne3 {[%emt 0:08:30]} Bf8 {[%emt 0:02:17]} 23. Qf3 {[%emt 0:01:30]} Qc8 $16 {[%emt 0:02:23]} 24. Nf5 {[%emt 0:05:30]} Qd8 {[%emt 0:00:06]} 25. Qg3 {[%emt 0:02:30]} Kh7 {[%emt 0:02:44]} 26. Rxd6 {[%emt 0:06:30]} Qc8 {[%emt 0:06:54]} 27. Qf3 {[%emt 0:04:30]} Bxd6 {[%emt 0:03:37]} 28. Nxd6 {[%emt 0:00:00]} Qc6 {[%emt 0:00:16]} 29. Nxe8 {[%emt 0:01:00]} Qxe8 {[%emt 0:00:01]} 30. Rd1 {[%emt 0:03:55]} Qe7 {[%emt 0:00:46]} 31. Qe3 {[%emt 0:03:30]} Rd7 {[%emt 0:00:28]} 32. Bd5 {[%emt 0:00:27]} Qb4 {[%emt 0:00:28]} 33. b3 {[%emt 0:00:24]} g6 {[%emt 0:00:28]} 34. f3 {[%emt 0:00:56]} Kg7 {[%emt 0:00:18]} 35. c3 {[%emt 0:00:58]} Qc5 {[%emt 0:00:55]} 36. Qxc5 {[%emt 0:01:14]} bxc5 {[%emt 0:00:00]} 37. b4 {[%emt 0:01:31]} cxb4 {[%emt 0:00:33]} 38. cxb4 {[%emt 0:00:09]} Nxd5 {[%emt 0:00:54]} 39. Rxd5 {[%emt 0:03:16]} Rb7 {[%emt 0:00:26]} 40. b5 {[%emt 0:01:04]} axb5 {[%emt 0:00:00]} 41. axb5 {[%emt 0:01:36]} Kf6 {[%emt 0:00:47]} 42. Kf2 {[%emt 0:00:00]} Ke6 {[%emt 0:00:30]} 43. Ke3 {[%emt 0:04:00]} h5 {[%emt 0:06:30]} 44. Kd3 {[%emt 0:01:30]} h4 {[%emt 0:00:30]} 45. Kc4 {[%emt 0:01:30]} g5 {[%emt 0:01:30]} 46. Rc5 {[%emt 0:00:30]} Rd7 {[%emt 0:01:30]} 47. b6 {[%emt 0:01:30]} 1-0